bitfinex/quotes_ETHUSD_20241203
["timestamp","ask_amount","ask_price","bid_price","bid_amount"]
[1733238419325,4.46000072,3599.7,3599.6,0.028]
[1733238420031,2.82050072,3599.7,3599.6,0.028]
[1733238420237,3.39841422,3599.7,3599.6,0.028]
[1733238420380,1.64760072,3599.7,3599.6,0.028]
[1733238420589,0.04250072,3599.7,3599.6,0.028]
[1733238420896,0.0279135,3599.8,3599.6,0.028]
[1733238421116,0.04329461,3599.7,3599.6,0.028]
[1733238421522,0.67353715,3600.0,3599.6,0.028]
[1733238421726,0.04347322,3599.7,3599.6,0.028]
[1733238422033,0.67353715,3600.0,3599.6,0.028]
[1733238422239,0.0429103,3599.7,3599.6,0.028]
[1733238422381,0.0279135,3599.9,3599.6,0.028]
[1733238422587,0.67353715,3600.0,3599.6,0.028]
[1733238422588,0.04343334,3599.7,3599.6,0.028]
[1733238422788,0.67353715,3600.0,3599.6,2.80607]
[1733238422982,0.04333661,3599.7,3599.6,2.80607]
[1733238423284,0.67353715,3600.0,3599.6,0.308607]
[1733238423615,0.0433669,3599.9,3599.6,2.80608]
[1733238423818,0.0433669,3599.9,3599.6,0.57706083]
[1733238424037,0.0712804,3599.9,3599.6,0.57706083]
[1733238424387,2.778,3599.7,3599.6,0.028]
[1733238424589,3.3559135,3599.7,3599.6,0.028]
[1733238424888,4.62269084,3599.7,3599.6,0.028]
[1733238425537,0.04386918,3599.7,3599.6,0.028]
[1733238426032,0.5779135,3599.9,3599.6,0.028]
[1733238426205,3.3994702,3599.7,3599.6,0.028]
[1733238426402,0.0279135,3599.7,3599.6,0.028]
[1733238426604,0.04368605,3599.7,3599.6,0.028]
[1733238426909,0.04368245,3599.7,3599.6,0.028]
[1733238427113,3.75189426,3599.7,3599.6,0.028]
[1733238427434,0.67353715,3600.0,3599.6,0.028]
[1733238427592,0.04347118,3599.7,3599.6,0.028]
[1733238427787,0.67353715,3600.0,3599.6,0.028]
[1733238427996,0.04347118,3599.7,3599.6,0.028]
[1733238428333,0.04348494,3599.7,3599.6,2.80603]
[1733238428518,0.67353715,3600.0,3599.6,0.469743]
[1733238428722,0.67353715,3600.0,3599.6,3.247753]
[1733238428932,0.67353715,3600.0,3599.9,2.77785]
[1733238430041,0.67353715,3600.0,3599.9,4.40355]
[1733238430347,0.58102807,3600.0,3599.9,4.40355]
[1733238430500,0.0279135,3601.5,3601.3,2.77676]
[1733238430697,0.158333,3601.6,3601.3,2.77676]
[1733238430698,0.158333,3601.6,3601.3,0.028]
[1733238432195,0.1862465,3601.6,3601.3,0.028]
[1733238432632,0.04273544,3601.5,3601.3,0.028]
[1733238432841,0.04273544,3601.5,3601.4,2.77669]
[1733238433103,0.04273544,3601.5,3601.3,0.028]
[1733238434253,0.03003544,3601.5,3601.3,2.80476]
[1733238434556,0.04287765,3601.5,3601.3,0.028]
[1733238434926,0.158333,3601.6,3601.3,0.028]
[1733238435250,0.158333,3601.6,3601.3,2.80475]
[1733238435785,0.158333,3601.6,3601.5,2.77662]
[1733238436360,0.158333,3601.6,3601.3,2.80472]
[1733238436565,0.158333,3601.6,3601.4,0.280472]
[1733238436768,0.158333,3601.6,3601.3,2.80477]
[1733238436971,0.158333,3601.6,3601.5,2.77662]
[1733238437487,0.158333,3601.6,3601.3,0.028]
[1733238439400,0.04417312,3601.5,3601.3,2.80474]
[1733238439767,0.04417312,3601.5,3601.3,0.028]
[1733238440080,0.04417312,3601.5,3601.4,2.77669]
[1733238440889,0.04417312,3601.5,3601.4,3.39085927]
[1733238441653,0.04417312,3601.5,3601.3,0.5880827]
[1733238441889,0.04417312,3601.5,3601.4,2.77669]
[1733238442299,0.01467312,3601.5,3601.4,2.77669]
[1733238442598,0.158333,3601.6,3601.5,2.77662]
[1733238443106,0.158333,3601.6,3601.3,0.5880827]
[1733238443107,0.158333,3601.6,3601.3,3.3648427]
[1733238443274,0.158333,3601.6,3601.3,2.80476]
[1733238443477,0.158333,3601.6,3601.5,2.77662]
[1733238445214,0.158333,3601.6,3601.3,0.028]
[1733238445414,0.158333,3601.6,3601.5,2.77662]
[1733238445619,0.158333,3601.6,3601.3,0.028]
[1733238446120,0.158333,3601.6,3601.3,2.80476]
[1733238446270,0.158333,3601.6,3601.4,2.77669]
[1733238446469,0.158333,3601.6,3601.5,2.77662]
[1733238447010,0.158333,3601.6,3601.5,4.38412]
[1733238447877,0.158333,3601.6,3601.5,2.77662]
[1733238448080,0.158333,3601.6,3601.3,1.5879]
[1733238448306,0.04360664,3601.5,3601.3,0.028]
[1733238449468,0.158333,3601.6,3601.3,0.028]
[1733238449816,0.158333,3601.6,3601.5,2.77662]
[1733238450029,0.158333,3601.6,3601.5,3.057082]
[1733238450323,0.158333,3601.6,3601.3,2.80471]
[1733238450469,0.158333,3601.6,3601.3,0.028]
[1733238451887,0.1862465,3601.6,3601.3,0.028]
[1733238452331,0.158333,3601.6,3601.3,0.028]
[1733238453003,0.1862465,3601.6,3601.3,0.028]
[1733238453199,0.04181935,3601.5,3601.3,0.028]
[1733238453938,0.158333,3601.6,3601.3,0.028]
[1733238454100,0.158333,3601.6,3601.3,2.80471]
[1733238454316,0.158333,3601.6,3601.4,2.77667]
[1733238454491,0.158333,3601.6,3601.3,0.028]
[1733238454685,0.04174198,3601.5,3601.3,0.028]
[1733238454939,0.158333,3601.6,3601.3,0.028]
[1733238455260,0.158333,3601.6,3601.4,1.5612]
[1733238455401,0.04045662,3601.5,3601.3,0.028]
[1733238455989,0.158333,3601.6,3601.3,0.028]
[1733238456432,0.04056661,3601.5,3601.3,0.028]
[1733238456584,0.158333,3601.6,3601.3,0.028]
[1733238457144,0.04058094,3601.5,3601.3,0.028]
[1733238457617,0.158333,3601.6,3601.3,0.028]
[1733238458007,0.04061621,3601.5,3601.3,0.028]
[1733238458312,0.158333,3601.6,3601.4,2.77669]
[1733238458512,0.158333,3601.6,3601.5,2.77662]
[1733238458727,0.158333,3601.6,3601.3,0.028]
[1733238458728,0.158333,3601.6,3601.3,2.80475]
[1733238459115,0.158333,3601.6,3601.3,0.028]
[1733238459319,1.56236586,3601.5,3601.3,0.028]
[1733238459530,0.04046586,3601.5,3601.3,0.028]
[1733238460330,0.06837936,3601.5,3601.3,0.028]
[1733238460503,0.04046586,3601.5,3601.3,0.028]
[1733238461110,0.04046586,3601.5,3601.4,3.32669]
[1733238461434,0.158333,3601.6,3601.5,2.77662]
[1733238461753,0.158333,3601.6,3601.5,3.389762]
[1733238462303,0.158333,3601.6,3601.5,2.77662]
[1733238462606,0.158333,3601.6,3601.3,0.028]
[1733238464908,1.62312026,3601.5,3601.3,0.028]
[1733238465145,0.03922026,3601.5,3601.3,0.028]
[1733238465505,0.03922026,3601.5,3601.4,2.77669]
[1733238465748,0.03922026,3601.5,3601.3,0.028]
[1733238466264,0.03914953,3601.4,3601.3,0.028]
[1733238466481,0.158333,3601.6,3601.3,0.028]
[1733238466909,0.03918771,3601.5,3601.3,2.80475]
[1733238467135,0.158333,3601.6,3601.4,2.77669]
[1733238467423,0.158333,3601.6,3601.5,3.32662]
[1733238467627,0.158333,3601.6,3601.3,0.578]
[1733238467779,0.158333,3601.6,3601.3,0.028]
[1733238467993,0.0390879,3601.5,3601.3,2.80472]
[1733238468177,0.158333,3601.6,3601.3,2.80473]
[1733238468601,0.03905473,3601.5,3601.3,2.80473]
[1733238468802,0.03905473,3601.5,3601.3,0.578]
[1733238469121,0.158333,3601.6,3601.3,3.35475]
[1733238469323,0.158333,3601.6,3601.3,0.028]
[1733238469979,0.158333,3601.6,3600.8,2.08390042]
[1733238470184,0.03902721,3601.5,3601.2,2.7768]
[1733238470390,0.158333,3601.6,3601.0,2.77695]
[1733238470600,0.158333,3601.6,3600.8,4.86103042]
[1733238470803,0.158333,3601.6,3600.8,2.08390042]
[1733238471002,0.03920147,3601.5,3600.8,2.08390042]
[1733238471318,1.87320192,3601.5,3600.8,0.56660042]
[1733238471627,1.87320192,3601.5,3600.4,1.6585]
[1733238471827,1.87320192,3601.5,3600.8,0.56098611]
[1733238471828,0.03920147,3601.5,3600.8,0.56098611]
[1733238472031,0.03920147,3601.5,3601.4,2.77669]
[1733238472242,0.03920147,3601.5,3600.9,0.55]
[1733238472397,0.03920147,3601.5,3601.4,0.028]
[1733238472602,0.158333,3601.6,3601.4,0.028]
[1733238473278,0.158333,3601.6,3601.4,2.80467]
[1733238473421,0.158333,3601.6,3601.4,0.028]
[1733238473744,0.158333,3601.6,3601.5,2.77662]
[1733238474459,0.158333,3601.6,3601.5,3.32662]
[1733238474752,0.158333,3601.6,3601.5,0.55]
[1733238474936,0.158333,3601.6,3601.4,0.578]
[1733238475249,0.158333,3601.6,3601.4,0.028]
[1733238476333,0.03894461,3601.5,3601.4,0.028]
[1733238476533,0.158333,3601.6,3601.4,0.028]
[1733238477963,0.03777099,3601.5,3601.4,0.028]
[1733238478814,0.158333,3601.6,3601.4,0.028]
[1733238479023,0.03766555,3601.5,3601.4,0.028]
[1733238479423,1.9346224,3601.5,3601.4,0.028]
[1733238479804,5.49857366,3601.5,3601.4,0.028]
[1733238480004,4.34477075,3601.5,3601.4,0.028]
[1733238480425,4.0475139,3601.5,3601.4,0.028]
[1733238480637,2.62933839,3601.5,3601.4,0.028]
[1733238480874,2.47576538,3601.5,3601.4,0.028]
[1733238481359,1.48381684,3601.5,3601.4,0.028]
[1733238481654,2.64974391,3601.5,3601.4,0.028]
[1733238481867,0.03766555,3601.5,3601.4,0.028]
[1733238482064,1.02967991,3601.5,3601.4,0.028]
[1733238482247,1.78795715,3601.5,3601.4,0.028]
[1733238482472,2.77976538,3601.5,3601.4,0.028]
[1733238482621,6.97443637,3601.5,3601.4,0.028]
[1733238483380,4.19781637,3601.5,3601.4,0.028]
[1733238483535,6.97443637,3601.5,3601.4,0.028]
[1733238483731,4.19781637,3601.5,3601.4,0.028]
[1733238483938,4.57738748,3601.5,3601.4,0.028]
[1733238484337,4.57738748,3601.5,3600.5,1.499402]
[1733238484637,0.0279135,3601.4,3600.5,4.276762]
[1733238484846,2.40954108,3601.3,3600.5,4.276762]
[1733238485062,0.03737365,3601.3,3600.5,1.499402]
[1733238485421,0.03737365,3601.3,3600.7,2.77716]
[1733238485611,1.1656384,3601.4,3600.7,2.77716]
[1733238485812,0.03734531,3601.2,3600.7,2.77716]
[1733238486009,0.03735204,3601.3,3600.7,0.028]
[1733238486247,1.1935519,3601.4,3600.7,0.028]
[1733238486248,0.03736103,3601.1,3600.7,0.028]
[1733238486565,0.03730777,3601.0,3600.7,0.028]
[1733238486726,1.16542389,3601.3,3600.7,0.028]
[1733238487055,1.6208,3601.1,3600.7,0.028]
[1733238487203,3.57462348,3601.0,3600.7,0.028]
[1733238487406,0.03672025,3601.0,3600.9,2.77708]
[1733238487600,0.03672025,3601.0,3600.9,4.41738]
[1733238487833,0.1862465,3601.6,3601.1,2.7769]
[1733238488046,0.1862465,3601.6,3600.9,0.028]
[1733238488258,0.0369172,3601.5,3601.1,0.028]
[1733238488553,0.0648307,3601.5,3601.1,2.80492]
[1733238488844,0.0369172,3601.5,3601.1,2.80492]
[1733238489403,0.0369172,3601.5,3601.4,2.77669]
[1733238489602,0.0369172,3601.5,3601.4,0.028]
[1733238489815,0.0369172,3601.5,3601.4,2.80469]
[1733238490035,0.0369172,3601.5,3601.4,4.875745]
[1733238490710,3e-06,3601.6,3601.5,3.32662]
[1733238490917,0.03308036,3601.6,3601.5,4.83952]
[1733238491133,0.03308036,3601.6,3601.5,5.24668312]
[1733238491331,0.03308036,3601.6,3601.5,4.69668312]
[1733238491496,0.03308036,3601.6,3601.5,5.39902127]
[1733238492175,0.03308036,3601.6,3601.5,4.28952]
[1733238492458,0.03308036,3601.6,3601.5,2.77662]
[1733238492658,0.03308036,3601.6,3601.5,0.56257992]
[1733238492808,0.03308036,3601.6,3601.4,2.80467]
[1733238493010,0.03308036,3601.6,3601.5,2.77662]
[1733238493251,0.03308036,3601.6,3601.5,3.38926197]
[1733238493469,0.03308036,3601.6,3601.4,0.57300972]
[1733238493641,0.03308036,3601.6,3601.5,2.77662]
[1733238493844,0.03308036,3601.6,3601.4,0.57300972]
[1733238494215,0.03308036,3601.6,3601.5,2.77662]
[1733238494407,0.03308036,3601.6,3601.4,0.57300972]
[1733238494655,0.52055428,3601.6,3601.4,0.028]
[1733238495123,0.96305234,3601.5,3601.4,0.028]
[1733238495314,5.24506713,3601.5,3601.4,0.028]
[1733238495510,6.83546713,3601.5,3601.4,0.028]
[1733238495928,7.36709,3601.4,3599.8,2.77791]
[1733238496093,1.16487067,3601.0,3600.0,0.55566361]
[1733238496245,0.96305234,3600.9,3600.0,0.55566361]
[1733238496587,0.03239697,3600.9,3600.3,2.77752]
[1733238496887,0.03239697,3600.9,3600.0,3.33342361]
[1733238497087,2.8050235,3600.9,3600.0,0.55566361]
[1733238497269,2.77725,3600.7,3599.6,2.77807]
[1733238497585,0.03191901,3600.6,3599.9,0.556664]
[1733238497804,2.77739,3600.5,3599.3,2.77824]
[1733238497998,2.77747,3600.4,3599.3,2.77824]
[1733238498157,1.6591135,3600.3,3599.3,0.028]
[1733238498493,2.77806,3599.7,3599.3,0.028]
[1733238498634,2.77816,3599.5,3599.3,0.028]
[1733238498833,0.03076579,3599.6,3599.3,0.028]
[1733238499078,0.03041627,3599.4,3599.3,0.028]
[1733238499286,1.6591135,3599.9,3599.3,2.80628]
[1733238499440,0.03080673,3599.4,3599.3,0.59655758]
[1733238499646,1.6312,3599.9,3599.3,0.59655758]
[1733238499851,0.03080673,3599.4,3599.3,0.59655758]
[1733238500153,0.03032211,3599.4,3599.3,0.59655758]
[1733238500344,4.40384,3599.4,3599.3,0.59655758]
[1733238500549,1.6535135,3599.4,3599.3,0.028]
[1733238500793,1.68396816,3599.4,3599.3,0.028]
[1733238500992,2.45591343,3599.4,3599.3,0.028]
[1733238501405,1.65605466,3599.4,3599.3,0.028]
[1733238502548,0.03045466,3599.4,3599.3,0.028]
[1733238502748,1.5324,3600.2,3599.4,1.5304]
[1733238502952,1.5324,3600.2,3599.7,2.778]
[1733238502953,0.02797459,3600.1,3599.7,2.778]
[1733238503249,0.02797459,3600.1,3600.0,2.77777]
[1733238503363,0.02797459,3600.1,3600.0,3.086347]
[1733238503564,1.73070436,3600.5,3600.1,2.77768]
[1733238503759,0.02741147,3600.1,3600.0,0.028]
[1733238503962,1.75861786,3600.5,3600.0,0.028]
[1733238504303,0.02775641,3600.4,3600.0,0.028]
[1733238504904,0.05566991,3600.4,3600.0,0.028]
[1733238505199,0.02775641,3600.4,3600.0,0.028]
[1733238505503,0.0279135,3600.3,3600.0,0.028]
[1733238505704,1.5351,3600.2,3600.0,0.028]
[1733238505916,1.56280781,3600.2,3600.0,0.028]
[1733238506108,0.0279135,3600.1,3600.0,0.028]
[1733238506255,1.56280781,3600.2,3600.0,0.028]
[1733238506459,0.0276696,3600.1,3600.0,0.028]
[1733238506967,0.0555831,3600.1,3600.0,0.028]
[1733238507231,0.25148368,3600.1,3600.0,0.028]
[1733238507362,0.22357018,3600.1,3600.0,0.028]
[1733238508461,0.0276696,3600.1,3600.0,0.028]
[1733238508807,1.73070436,3600.5,3600.0,2.80577]
[1733238509019,0.02749695,3600.1,3600.0,0.028]
[1733238509159,2.7777,3600.1,3600.0,0.028]
[1733238509355,4.3506766,3600.1,3600.0,0.028]
[1733238509559,5.74798877,3600.1,3600.0,0.028]
[1733238509785,9.29798877,3600.1,3600.0,0.028]
[1733238510001,0.55,3599.5,3597.9,1.5472]
[1733238510209,0.55,3599.1,3597.9,1.5472]
[1733238510364,0.0279135,3599.0,3597.9,1.5472]
[1733238510700,0.02710832,3598.9,3598.1,2.77923]
[1733238510902,0.02710832,3598.9,3598.0,0.432667]
[1733238511163,1.6317,3599.2,3598.4,2.779]
[1733238511315,1.6317,3599.2,3598.2,2.77915]
[1733238511506,1.526,3599.0,3597.9,0.54975917]
[1733238511707,0.21293165,3598.9,3598.0,2.77929]
[1733238511951,0.21293165,3598.9,3597.9,0.54975917]
[1733238511952,0.0269265,3598.9,3598.1,2.77923]
[1733238512132,0.0269265,3598.9,3597.9,2.17875917]
[1733238512133,0.05484,3598.9,3597.9,2.17875917]
[1733238512332,2.8065435,3598.9,3597.9,0.57775917]
[1733238512537,0.02688826,3598.8,3597.9,0.57775917]
[1733238512749,0.0279135,3598.7,3597.9,0.57775917]
[1733238513045,0.02681177,3598.6,3598.4,2.77901]
[1733238513246,0.02681177,3598.6,3598.5,0.277901]
[1733238513472,1.5159,3599.7,3598.5,3.056831]
[1733238513651,1.5159,3599.7,3598.5,0.277901]
[1733238513853,0.02719411,3599.6,3598.5,0.277901]
[1733238514016,0.02719411,3599.6,3599.0,2.77851]
[1733238514206,0.02719411,3599.6,3598.6,0.54236118]
[1733238514413,0.02719411,3599.6,3599.0,0.028]
[1733238514646,1.5472,3600.1,3599.0,0.028]
[1733238514877,0.02697267,3599.5,3599.4,2.77824]
[1733238515074,1.1600708,3600.5,3599.4,0.028]
[1733238515432,0.027291,3600.4,3599.4,0.028]
[1733238515636,0.0552045,3600.4,3599.6,2.77802]
[1733238515876,0.027291,3600.4,3599.8,2.77792]
[1733238516180,1.1600708,3600.5,3599.6,0.308602]
[1733238516350,1.1600708,3600.5,3599.6,0.028]
[1733238516546,0.02738705,3600.4,3599.6,0.028]
[1733238517138,0.02738705,3600.4,3599.6,0.61677342]
[1733238517339,0.02738705,3600.4,3600.3,2.77754]
[1733238517567,1.1600708,3600.5,3600.3,2.77754]
[1733238517787,1.1600708,3600.5,3600.4,3.055214]
[1733238517952,1.1600708,3600.5,3600.4,4.714714]
[1733238519138,1.1600708,3600.5,3600.4,4.43696]
[1733238519339,3e-06,3601.6,3600.8,2.77713]
[1733238520082,3e-06,3601.6,3600.9,2.77707]
[1733238520392,3e-06,3601.6,3600.4,2.25333568]
[1733238520393,0.0279165,3601.6,3600.4,2.25333568]
[1733238520695,3e-06,3601.6,3600.7,2.77723]
[1733238520996,0.4435393,3601.5,3600.7,0.028]
[1733238521589,3e-06,3601.6,3600.7,0.028]
[1733238522077,0.0279165,3601.6,3600.7,0.028]
[1733238522507,0.55,3601.4,3600.7,0.028]
[1733238522906,0.02652395,3601.3,3600.7,2.80516]
[1733238523315,0.02652395,3601.3,3600.7,0.028]
[1733238523502,0.02652395,3601.3,3600.7,2.80523]
[1733238523683,0.02652395,3601.3,3600.7,0.028]
[1733238524106,1.5825,3601.5,3600.7,0.028]
[1733238524287,0.02637576,3601.2,3601.0,2.77699]
[1733238524469,3e-06,3601.6,3601.1,2.77692]
[1733238524818,3e-06,3601.6,3601.3,2.77677]
[1733238524973,3e-06,3601.6,3601.1,1.6212]
[1733238525325,3e-06,3601.6,3601.0,0.028]
[1733238525326,0.02722581,3601.5,3601.2,2.77685]
[1733238525483,0.02722581,3601.5,3601.0,0.028]
[1733238525684,0.02722581,3601.5,3601.2,2.77677]
[1733238525888,0.02722581,3601.5,3601.2,0.028]
[1733238526980,0.05513931,3601.5,3601.2,0.028]
[1733238527185,2.2016,3601.3,3601.2,0.028]
[1733238527443,5.0062835,3601.3,3601.2,0.028]
[1733238527587,5.03345704,3601.3,3601.2,0.028]
[1733238527784,1.70668704,3601.3,3601.2,0.028]
[1733238528096,0.02717354,3601.3,3601.2,0.028]
[1733238528294,3e-06,3601.6,3601.2,0.308499]
[1733238528494,3e-06,3601.6,3601.2,0.028]
[1733238528900,0.02710208,3601.5,3601.2,0.028]
[1733238529304,0.02710208,3601.5,3601.2,2.80483]
[1733238529633,3e-06,3601.6,3601.5,2.77662]
[1733238530028,3e-06,3601.6,3601.4,1.525]
[1733238530324,3e-06,3601.6,3601.2,0.028]
[1733238530524,3e-06,3601.6,3601.5,2.77662]
[1733238530823,3e-06,3601.6,3601.5,4.862262]
[1733238531231,3e-06,3601.6,3601.5,4.30412]
[1733238531525,3e-06,3601.6,3601.5,1.5275]
[1733238531901,3e-06,3601.6,3601.5,4.86249506]
[1733238532097,3e-06,3601.6,3601.5,1.5275]
[1733238532300,3e-06,3601.6,3601.5,2.77662]
[1733238532503,3e-06,3601.6,3601.2,0.028]
[1733238532743,0.1528403,3601.5,3601.2,0.028]
[1733238533060,0.0279135,3601.4,3601.2,0.028]
[1733238533218,2.77677,3601.3,3601.2,0.028]
[1733238533419,4.32856945,3601.3,3601.2,0.028]
[1733238534128,1.55179945,3601.3,3601.2,0.028]
[1733238534352,1.72226373,3601.3,3601.2,0.028]
[1733238534821,0.02609945,3601.3,3601.2,0.028]
[1733238535135,3e-06,3601.6,3601.2,0.028]
[1733238535453,0.02544449,3601.5,3601.2,2.80484]
[1733238535666,0.02544449,3601.5,3601.2,0.028]
[1733238535821,1.6024,3601.4,3601.2,0.028]
[1733238536224,0.02548053,3601.3,3601.2,0.028]
[1733238536943,0.02548053,3601.3,3601.2,2.80485]
[1733238537154,3e-06,3601.6,3601.2,0.308485]
[1733238537474,0.0255569,3601.5,3601.2,0.028]
[1733238537828,1.6123,3601.4,3601.2,0.028]
[1733238538023,4.38907,3601.4,3601.2,0.028]
[1733238538331,0.60342153,3601.3,3601.2,0.028]
[1733238538545,3.38019153,3601.3,3601.2,0.028]
[1733238538768,4.89798459,3601.3,3601.2,0.028]
[1733238538975,9.54768459,3601.3,3601.2,0.028]
[1733238539268,9.51977109,3601.3,3601.2,0.028]
[1733238541927,9.51977109,3601.3,3599.5,2.77815]
[1733238541928,2.77773,3600.1,3599.5,0.54625667]
[1733238542103,1.5656,3599.9,3599.5,0.54625667]
[1733238542418,2.77808,3599.6,3599.5,0.54625667]
[1733238542620,1.5656,3599.1,3597.7,2.7795]
[1733238542770,0.0279135,3599.0,3597.9,2.77939]
[1733238542974,0.0279135,3599.0,3598.0,0.55865517]
[1733238543193,0.5779135,3599.0,3597.5,1.5215]
[1733238543422,2.77873,3598.8,3597.7,2.77955]
[1733238543577,0.87629182,3598.9,3597.7,0.028]
[1733238543779,3.65495182,3598.9,3597.7,2.80754]
[1733238543982,2.77879,3598.7,3597.7,0.028]
[1733238544174,0.0279135,3598.6,3597.7,0.028]
[1733238544402,0.0279135,3598.8,3597.7,0.028]
[1733238544612,0.57984253,3598.8,3597.7,0.028]
[1733238544988,2.77801,3599.7,3597.8,1.58489202]
[1733238545154,4.5442,3599.8,3597.9,3.84088471]
[1733238545155,1.5442,3599.8,3597.9,3.84088471]
[1733238545300,1.5442,3599.8,3598.2,2.77916]
[1733238545501,1.5442,3599.8,3599.0,2.77854]
[1733238545698,1.5442,3599.8,3598.6,0.54859182]
[1733238545951,1.605,3600.2,3598.7,1.555]
[1733238546142,0.1605,3600.1,3599.2,2.77839]
[1733238546442,0.0279135,3600.0,3599.2,2.77839]
[1733238546644,0.0279135,3600.0,3599.2,0.028]
[1733238547047,1.5216,3599.9,3599.2,0.028]
[1733238547265,2.77831,3599.3,3599.2,0.028]
[1733238547397,4.577741,3599.3,3599.2,0.028]
[1733238547606,4.6056545,3599.3,3599.2,0.028]
[1733238547847,5.1556545,3599.3,3599.2,0.028]
[1733238548062,8.1556545,3599.3,3599.2,0.028]
[1733238548345,8.127741,3599.3,3599.2,0.028]
[1733238549662,4.34214,3599.0,3597.5,1.627]
[1733238549811,2.77901,3598.4,3597.5,1.627]
[1733238550132,2.77885,3598.7,3597.5,1.627]
[1733238550339,0.0279135,3598.6,3597.5,1.627]
[1733238550525,2.77908,3598.4,3597.5,1.627]
[1733238550844,2.77888,3598.6,3597.5,1.627]
[1733238551041,0.789214,3598.9,3597.5,1.627]
[1733238551042,3.789214,3598.9,3597.5,2.09825157]
[1733238551325,0.0279135,3598.9,3597.5,1.627]
[1733238551692,1.5908,3599.7,3598.0,1.5287]
[1733238551998,1.5908,3600.1,3599.0,2.77854]
[1733238552208,1.5908,3600.1,3599.0,0.05578293]
[1733238552443,1.5908,3600.1,3599.3,2.7783]
[1733238552658,1.5908,3600.1,3599.0,0.028]
[1733238552797,1.5908,3600.1,3599.2,2.77839]
[1733238553138,1.5908,3600.1,3599.1,0.15567]
[1733238553139,2.8056935,3600.0,3599.1,0.15567]
[1733238553346,2.8056935,3600.0,3599.1,0.028]
[1733238553494,2.77796,3599.8,3599.1,0.028]
[1733238553693,0.0279135,3600.0,3599.1,0.028]
[1733238553694,1.6644,3599.6,3599.1,0.028]
[1733238553896,0.0279135,3599.5,3599.1,0.028]
[1733238554210,2.77839,3599.2,3599.1,0.028]
[1733238554407,3.05902035,3599.2,3599.1,0.028]
[1733238554809,4.68142035,3599.2,3599.1,0.028]
[1733238555137,8.25933385,3599.2,3599.1,0.028]
[1733238555297,8.23142035,3599.2,3599.1,0.028]
[1733238556362,2.77894,3598.5,3596.9,1.6655]
[1733238556563,0.0279135,3598.8,3597.2,3.32380652]
[1733238556746,0.0279135,3598.8,3597.2,2.77989]
[1733238556947,2.77893,3598.5,3597.3,2.77983]
[1733238557341,0.0279135,3598.8,3597.0,0.82865847]
[1733238557342,0.0279135,3598.4,3597.0,0.82865847]
[1733238557554,1.553,3598.3,3596.9,1.6655]
[1733238557759,2.77947,3597.9,3596.9,1.6655]
[1733238558092,2.77964,3597.6,3596.9,1.6655]
[1733238558254,0.0279135,3597.5,3596.4,2.78055]
[1733238558457,0.0279135,3598.0,3596.0,1.6151]
[1733238558657,0.55,3597.8,3596.1,0.439606]
[1733238558846,2.76129466,3597.3,3596.1,2.80877]
[1733238559041,0.0279135,3597.2,3596.1,0.028]
[1733238559287,1.5637,3597.1,3596.1,0.028]
[1733238559471,0.0279135,3597.0,3596.1,0.028]
[1733238559805,2.8080135,3597.0,3596.1,0.028]
[1733238560297,2.78017,3596.9,3596.1,0.028]
[1733238560443,0.434387,3596.9,3596.1,0.028]
[1733238560646,0.0279135,3597.0,3596.1,0.028]
[1733238560647,0.0279135,3596.8,3596.1,0.028]
[1733238560948,2.78049,3596.5,3596.1,0.028]
[1733238561150,0.0279135,3596.8,3596.1,0.028]
[1733238561151,2.78033,3596.7,3596.1,0.028]
[1733238561347,0.55,3596.7,3596.1,0.028]
[1733238561581,7.86871,3596.2,3596.1,0.028]
[1733238561748,9.81771747,3596.2,3596.1,0.028]
[1733238561949,2.78153,3595.2,3594.1,1.582]
[1733238562266,2.78179,3594.8,3594.1,1.582]
[1733238562468,3.0279135,3594.7,3593.5,4.36478]
[1733238562662,3.0279135,3594.7,3593.6,0.436478]
[1733238562867,3.0,3594.6,3593.6,0.436478]
[1733238563148,3.86879821,3594.7,3593.5,1.582]
[1733238563149,0.0279135,3594.5,3593.5,1.582]
[1733238563381,1.6458,3593.7,3592.9,3.897471]
[1733238563577,0.0279135,3593.6,3592.9,1.114221]
[1733238563801,2.78284,3593.5,3592.1,4.41763]
[1733238564115,1.5706,3594.2,3592.3,1.6007]
[1733238564249,0.0279135,3594.1,3592.3,1.6007]
[1733238564448,1.5985135,3594.2,3592.8,2.78333]
[1733238564898,1.5706,3594.2,3592.9,2.7832]
[1733238565410,1.5706,3594.2,3592.8,0.028]
[1733238565411,3.0279135,3594.1,3592.8,0.578]
[1733238565693,4.35287,3594.2,3592.9,2.78325]
[1733238565694,1.5706,3594.2,3592.9,2.78325]
[1733238565899,1.5985135,3594.2,3593.0,0.94192613]
[1733238566105,1.5985135,3594.2,3593.0,0.96992613]
[1733238566449,2.7818,3594.8,3593.4,3.0]
[1733238566450,1.5551,3594.8,3593.4,3.0]
[1733238566649,1.5551,3594.8,3593.8,0.55]
[1733238566912,1.5551,3595.3,3594.2,0.55]
[1733238567214,2.78158,3595.1,3594.2,0.51948]
[1733238567366,4.3360998,3595.0,3594.2,0.028]
[1733238567550,4.3081863,3594.5,3594.2,0.028]
[1733238567759,4.33728,3594.3,3594.2,0.028]
[1733238567959,7.78233,3594.1,3591.7,0.43521584]
[1733238568202,7.78233,3594.1,3591.6,1.5825]
[1733238568203,2.78289,3593.4,3591.6,1.5825]
[1733238568349,0.87083763,3593.3,3592.3,2.78371]
[1733238568550,1.6173,3593.5,3592.1,2.78388]
[1733238568551,1.6452135,3593.5,3592.1,2.78388]
[1733238568798,4.4280235,3593.5,3592.1,2.78388]